Workbook

Sheet Sheet1
B1: 2012 LOBBYING SESSION
B2: November 1, 2011 to April 30, 2012 Due on May 31, 2012
B3: May 1 to October 31, 2012 due Nov 30, 2012
B4: COMPENSATED | AA4: Grand Total Nov 1, 11-Oct 31, 12
C5: Pd 1 | H5: Exp | I5: Total | K5: All Other | M5: Backed Out | N5: Net Total | O5: Pd 2 | T5: Exp | U5: Total | W5: All Other | Y5: Backed Out | Z5: Net Total
A6: Lobbyist | B6: Client | C6: Comp | D6: Reimb | E6: Recpt | F6: Entmnt | G6: Gifts | H6: all LB | I6: Sec E | J6: Fees | K6: Exp | L6: Total Pd 1 | M6: Exp Pd 1 | N6: Pd 1 | O6: Comp | P6: Reim | Q6: Recpt | R6: Entmnt | S6: Gifts | T6: All LB | U6: Sec E | V6: Fees | W6: Exp | X6: Total Pd 2 | Y6: Exp Pd 2 | Z6: Pd 2
A9: Abel, Edmund | B9: Blue & Co., LLC | C9: 0 | D9: 0 | E9: 0 | F9: 0 | G9: 0 | H9: 0 | I9: 0 | J9: 100 | K9: 0 | L9: =SUM(C9:K9) -> 100 | M9: 100 | N9: =SUM(L9-M9) -> 0 | O9: 0 | P9: 0 | Q9: 0 | R9: 0 | S9: 0 | T9: 0 | U9: 0 | V9: 0 | W9: 0 | X9: =SUM(O9:W9) -> 0 | Y9: 0 | Z9: =SUM(X9-Y9) -> 0 | AA9: =SUM(N9+Z9) -> 0
A10: Ainsworth, Richard | B10: IN Farm Bureau Insurance | C10: 0 | D10: 0 | E10: 0 | F10: 0 | G10: 0 | H10: 0 | I10: 0 | J10: 0 | K10: 0 | L10: =SUM(C10:K10) -> 0 | M10: 0 | N10: =SUM(L10-M10) -> 0 | O10: 0 | P10: 0 | Q10: 0 | R10: 0 | S10: 0 | T10: 0 | U10: 0 | V10: 0 | W10: 0 | X10: 0 | Y10: 0 | Z10: 0 | AA10: 0
A11: Aldis, Chad | B11: StudentsFirst | C11: 0 | D11: 0 | E11: 0 | F11: 0 | G11: 0 | H11: 0 | I11: 0 | J11: 0 | K11: 0 | L11: =SUM(C11:K11) -> 0 | M11: 0 | N11: =SUM(L11-M11) -> 0 | X11: =SUM(O11:W11) -> 0 | Z11: =SUM(X11-Y11) -> 0 | AA11: =SUM(N11+Z11) -> 0
A12: Alldredge, Neil | B12: Natl Assn of Mut Insurance Co. | C12: 0 | D12: 0 | E12: 0 | F12: 0 | G12: 0 | H12: 0 | I12: 0 | J12: 0 | K12: 0 | L12: 0 | M12: 0 | N12: 0 | O12: 0 | P12: 0 | Q12: 0 | R12: 0 | S12: 0 | T12: 0 | U12: 0 | V12: 0 | W12: 0 | X12: 0 | Y12: 0 | Z12: 0 | AA12: 0
A13: Allegue, Raul | B13: The Travelers Companies & Subsidiaries | C13: 0 | D13: 0 | E13: 0 | F13: 0 | G13: 0 | H13: 0 | I13: 0 | J13: 100 | K13: 0 | L13: =SUM(C13:K13) -> 100 | M13: 100 | N13: =SUM(L13-M13) -> 0 | O13: 0 | P13: 0 | Q13: 0 | R13: 0 | S13: 0 | T13: 0 | U13: 0 | V13: 0 | W13: 0 | X13: 0 | Y13: 0 | Z13: 0 | AA13: 0
A14: Allison, Kara Ann | B14: Hull & Associates, Inc. | C14: 0 | D14: 0 | E14: 0 | F14: 0 | G14: 0 | H14: 0 | I14: 0 | J14: 0 | K14: 0 | L14: 0 | M14: 0 | N14: 0 | O14: 0 | P14: 0 | Q14: 0 | R14: 0 | S14: 0 | T14: 0 | U14: 0 | V14: 0 | W14: 0 | X14: 0 | Y14: 0 | Z14: 0 | AA14: 0
A15: Altria Client Svcs Inc. | B15: Philip Morris USA, by its service Altria | C15: 68807.67 | D15: 0 | E15: 0 | F15: 0 | G15: 0 | H15: 0 | I15: 0 | J15: 529.8 | K15: 1359.94 | L15: 70697.41 | M15: 70697.41 | N15: 0 | O15: 62266.51 | P15: 0 | Q15: 0 | R15: 0 | S15: 0 | T15: 0 | U15: 0 | V15: 0 | W15: 1471.08 | X15: 63737.59 | Y15: 63737.59 | Z15: 7.275957614e-12 | AA15: 7.275957614e-12
B16: John Middleton Co by its affilit svc Altria | C16: 1792.27 | D16: 0 | E16: 0 | F16: 0 | G16: 0 | H16: 0 | I16: 0 | J16: 13.8 | K16: 35.42 | L16: 1841.49 | M16: 1841.49 | N16: 0 | O16: 1621.89 | P16: 0 | Q16: 0 | R16: 0 | S16: 0 | T16: 0 | U16: 0 | V16: 0 | W16: 38.32 | X16: 1660.21 | Y16: 1660.21 | Z16: 0 | AA16: 0
B17: US Smokeless Tobacco Co by its svc Altria | C17: 7324.94 | D17: 0 | E17: 0 | F17: 0 | G17: 0 | H17: 0 | I17: 0 | J17: 56.4 | K17: 144.77 | L17: 7526.11 | M17: 7526.11 | N17: 0 | O17: 6628.6 | P17: 0 | Q17: 0 | R17: 0 | S17: 0 | T17: 0 | U17: 0 | V17: 0 | W17: 156.6 | X17: 6785.2 | Y17: 6785.2 | Z17: 9.094947018e-13 | AA17: 9.094947018e-13
B18: Altria Client Svcs | C18: 0 | D18: 0 | E18: 0 | F18: 0 | G18: 0 | H18: 0 | I18: 0 | J18: 0 | K18: 0 | L18: =SUM(C18:K18) -> 0 | M18: 0 | N18: =SUM(L18-M18) -> 0 | O18: 0 | P18: 0 | Q18: 0 | R18: 0 | S18: 0 | T18: 0 | U18: 0 | V18: 0 | W18: 0 | X18: 0 | Y18: 0 | Z18: 0 | AA18: 0
A19: Amundson, Ross E. | B19: Indiana American Water Company | C19: 0 | D19: 0 | E19: 0 | F19: 0 | G19: 0 | H19: 0 | I19: 0 | J19: 0 | K19: 0 | L19: 0 | M19: 0 | N19: 0 | X19: 0 | Z19: 0 | AA19: 0
A20: APPIAN | B20: Boone Co Board of Commissioners | C20: 1300 | D20: 0 | E20: 0 | F20: 0 | G20: 0 | H20: 0 | I20: 0 | J20: 0 | K20: 0 | L20: 1300 | M20: 1300 | N20: 0 | O20: 2128 | P20: 0 | Q20: 0 | R20: 0 | S20: 0 | T20: 0 | U20: 0 | V20: 0 | W20: 0 | X20: 2128 | Y20: 2128 | Z20: 0 | AA20: 0
B21: Build IN Council | C21: 32537 | D21: 0 | E21: 0 | F21: 0 | G21: 0 | H21: 0 | I21: 0 | J21: 0 | K21: 0 | L21: =SUM(C21:K21) -> 32537 | M21: 32537 | N21: =SUM(L21-M21) -> 0 | O21: 39900 | P21: 0 | Q21: 0 | R21: 0 | S21: 0 | T21: 0 | U21: 0 | V21: 0 | W21: 0 | X21: =SUM(O21:W21) -> 39900 | Y21: 39900 | Z21: =SUM(X21-Y21) -> 0 | AA21: =SUM(N21+Z21) -> 0
B22: Cass County Bd of Commissioners | C22: 0 | D22: 0 | E22: 0 | F22: 0 | G22: 0 | H22: 0 | I22: 0 | J22: 0 | K22: 0 | L22: 0 | M22: 0 | N22: 0 | O22: 0 | P22: 0 | Q22: 0 | R22: 0 | S22: 0 | T22: 0 | U22: 0 | V22: 0 | W22: 0 | X22: 0 | Y22: 0 | Z22: 0 | AA22: 0
B23: City of Logansport | C23: 1300 | D23: 0 | E23: 0 | F23: 0 | G23: 0 | H23: 0 | I23: 0 | J23: 0 | K23: 0 | L23: 1300 | M23: 1300 | N23: 0 | O23: 0 | P23: 0 | Q23: 0 | R23: 0 | S23: 0 | T23: 0 | U23: 0 | V23: 0 | W23: 0 | X23: 0 | Y23: 0 | Z23: 0 | AA23: 0
B24: City of Monticello | C24: 0 | D24: 0 | E24: 0 | F24: 0 | G24: 0 | H24: 0 | I24: 0 | J24: 0 | K24: 0 | L24: 0 | M24: 0 | N24: 0 | X24: 0 | Z24: 0 | AA24: 0
B25: City of Vincennes | C25: 0 | D25: 0 | E25: 0 | F25: 0 | G25: 0 | H25: 0 | I25: 0 | J25: 0 | K25: 0 | L25: 0 | M25: 0 | N25: 0 | X25: 0 | Z25: 0 | AA25: 0
B26: Harrison Co Govmtn | C26: 1300 | D26: 0 | E26: 0 | F26: 0 | G26: 0 | H26: 0 | I26: 0 | J26: 0 | K26: 0 | L26: 1300 | M26: 1300 | N26: 0 | O26: 2128 | P26: 0 | Q26: 0 | R26: 0 | S26: 0 | T26: 0 | U26: 0 | V26: 0 | W26: 0 | X26: 2128 | Y26: 2128 | Z26: 0 | AA26: 0
B27: Hendricks Co. Board of Commissioners | C27: 1300 | D27: 0 | E27: 0 | F27: 0 | G27: 0 | H27: 0 | I27: 0 | J27: 0 | K27: 0 | L27: 1300 | M27: 1300 | N27: 0 | O27: 2128 | P27: 0 | Q27: 0 | R27: 0 | S27: 0 | T27: 0 | U27: 0 | V27: 0 | W27: 0 | X27: 2128 | Y27: 2128 | Z27: 0 | AA27: 0
B28: IN Constructors Assn | C28: 2169 | D28: 0 | E28: 0 | F28: 0 | G28: 0 | H28: 0 | I28: 0 | J28: 0 | K28: 0 | L28: 2169 | M28: 2169 | N28: 0 | O28: 2660 | P28: 0 | Q28: 0 | R28: 0 | S28: 0 | T28: 0 | U28: 0 | V28: 0 | W28: 0 | X28: 2660 | Y28: 2660 | Z28: 0 | AA28: 0
B29: US 31 Coalition Inc. | C29: 1300 | D29: 0 | E29: 0 | F29: 0 | G29: 0 | H29: 0 | I29: 0 | J29: 0 | K29: 0 | L29: 1300 | M29: 1300 | N29: 0 | O29: 2128 | P29: 0 | Q29: 0 | R29: 0 | S29: 0 | T29: 0 | U29: 0 | V29: 0 | W29: 0 | X29: 2128 | Y29: 2128 | Z29: 0 | AA29: 0
B30: White Co Board of Commissioners | C30: 1300 | D30: 0 | E30: 0 | F30: 0 | G30: 0 | H30: 0 | I30: 0 | J30: 0 | K30: 0 | L30: 1300 | M30: 1300 | N30: 0 | O30: 2128 | P30: 0 | Q30: 0 | R30: 0 | S30: 0 | T30: 0 | U30: 0 | V30: 0 | W30: 0 | X30: 2128 | Y30: 2128 | Z30: 0 | AA30: 0
A31: Arland, Karen L. | B31: See clients of Ice Miller | C31: 0 | D31: 0 | E31: 0 | F31: 0 | G31: 0 | H31: 0 | I31: 0 | J31: 0 | K31: 0 | L31: 0 | M31: 0 | N31: 0 | O31: 0 | P31: 0 | Q31: 0 | R31: 0 | S31: 0 | T31: 0 | U31: 0 | V31: 0 | W31: 0 | X31: 0 | Y31: 0 | Z31: 0 | AA31: 0
A32: Ashton, Brett | B32: Krieg DeVault, LLP | C32: 0 | D32: 0 | E32: 0 | F32: 116.4 | G32: 0 | H32: 0 | I32: 0 | J32: 0 | K32: 0 | L32: 116.4 | M32: 116.4 | N32: 0 | O32: 0 | P32: 0 | Q32: 0 | R32: 141.71 | S32: 0 | T32: 0 | U32: 0 | V32: 0 | W32: 0 | X32: 141.71 | Y32: 141.71 | Z32: 0 | AA32: 0
A33: Auberry, Brent | B33: Faegre Baker Daniels LLP | C33: 0 | D33: 0 | E33: 0 | F33: 0 | G33: 0 | H33: 0 | I33: 0 | J33: 0 | K33: 0 | L33: 0 | M33: 0 | N33: 0 | O33: 0 | P33: 0 | Q33: 0 | R33: 0 | S33: 0 | T33: 0 | U33: 0 | V33: 0 | W33: 0 | X33: 0 | Y33: 0 | Z33: 0 | AA33: 0
A34: Augustus, Eric | B34: IN Assn of Realtors | C34: 0 | D34: 0 | E34: 0 | F34: 0 | G34: 0 | H34: 0 | I34: 0 | J34: 0 | K34: 0 | L34: =SUM(C34:K34) -> 0 | M34: 0 | N34: =SUM(L34-M34) -> 0 | O34: 0 | P34: 0 | Q34: 0 | R34: 0 | S34: 0 | T34: 0 | U34: 0 | V34: 0 | W34: 0 | X34: =SUM(O34:W34) -> 0 | Y34: 0 | Z34: =SUM(X34-Y34) -> 0 | AA34: =SUM(N34+Z34) -> 0
A35: Auslander, Caryl | B35: Clients of The Corydon Group | C35: 0 | D35: 0 | E35: 0 | F35: 38 | G35: 0 | H35: 0 | I35: 0 | J35: 0 | K35: 0 | L35: 38 | M35: 38 | N35: 0 | O35: 0 | P35: 0 | Q35: 0 | R35: 355.29 | S35: 0 | T35: 0 | U35: 0 | V35: 0 | W35: 0 | X35: 355.29 | Y35: 276.71 | Z35: 78.58 | AA35: 78.58
A36: Axelson, Clifford | B36: Prudential Financial | C36: 0 | D36: 0 | E36: 0 | F36: 0 | G36: 0 | H36: 0 | I36: 0 | J36: 0 | K36: 0 | L36: =SUM(C36:K36) -> 0 | M36: 0 | N36: =SUM(L36-M36) -> 0 | O36: 0 | P36: 0 | Q36: 0 | R36: 0 | S36: 0 | T36: 0 | U36: 0 | V36: 0 | W36: 0 | X36: 0 | Y36: 0 | Z36: 0 | AA36: 0
A37: Bailey, Todd | B37: Huntington Bancshares Inc | C37: 0 | D37: 0 | E37: 0 | F37: 0 | G37: 0 | H37: 0 | I37: 0 | J37: 0 | K37: 0 | L37: 0 | M37: 0 | N37: 0 | O37: 0 | P37: 0 | Q37: 0 | R37: 0 | S37: 0 | T37: 0 | U37: 0 | V37: 0 | W37: 0 | X37: 0 | Y37: 0 | Z37: 0 | AA37: 0
A38: Bainter, Jeffrey J. | B38: Brtherhd Maintnce Way Empl Division, IBT | C38: 0 | D38: 0 | E38: 0 | F38: 0 | G38: 0 | H38: 0 | I38: 0 | J38: 0 | K38: 0 | L38: 0 | M38: 0 | N38: 0 | O38: 0 | P38: 0 | Q38: 0 | R38: 0 | S38: 0 | T38: 0 | U38: 0 | V38: 0 | W38: 0 | X38: 0 | Y38: 0 | Z38: 0 | AA38: 0
A39: Baker, A. John | B39: Caesars Entertainment Operating Company | C39: 0 | D39: 0 | E39: 0 | F39: 1462.28 | G39: 0 | H39: 0 | I39: 0 | J39: 104 | K39: 0 | L39: =SUM(C39:K39) -> 1566.28 | M39: 1566.28 | N39: =SUM(L39-M39) -> 0 | O39: 0 | P39: 0 | Q39: 0 | R39: 866.71 | S39: 0 | T39: 0 | U39: 0 | V39: 0 | W39: 0 | X39: 866.71 | Y39: 866.71 | Z39: 0 | AA39: 0
A40: Baker, John J | B40: Repub. Natl Distrib. Co of IN/ NWS | C40: 0 | D40: 0 | E40: 0 | F40: 0 | G40: 0 | H40: 0 | I40: 0 | J40: 0 | K40: 0 | L40: 0 | M40: 0 | N40: 0 | X40: =SUM(O40:W40) -> 0 | Z40: =SUM(X40-Y40) -> 0 | AA40: =SUM(N40+Z40) -> 0
A41: Baldini, Sarah | B41: Best Buddies International | C41: 0 | D41: 0 | E41: 0 | F41: 24.93 | G41: 0 | H41: 0 | I41: 0 | J41: 0 | K41: 0 | L41: 24.93 | M41: 24.93 | N41: 0 | O41: 0 | P41: 0 | Q41: 0 | R41: 0 | S41: 0 | T41: 0 | U41: 0 | V41: 0 | W41: 0 | X41: 0 | Y41: 0 | Z41: 0 | AA41: 0
A42: Bannister, Judy | B42: Children's Bureau | C42: 0 | D42: 0 | E42: 0 | F42: 0 | G42: 0 | H42: 0 | I42: 0 | J42: 0 | K42: 0 | L42: 0 | M42: 0 | N42: 0 | X42: 0 | Z42: 0 | AA42: 0
A43: Barkan, Ari | B43: Credit Suisse Asset Mgmnt LLC | C43: 0 | D43: 0 | E43: 0 | F43: 0 | G43: 0 | H43: 0 | I43: 0 | J43: 100 | K43: 0 | L43: 100 | M43: 0 | N43: 100 | X43: 0 | Z43: 0 | AA43: 100
A44: Barker, Cynthia Jane | B44: Indiana Lumber & Builders' Supply Assn | C44: 0 | D44: 0 | E44: 0 | F44: 0 | G44: 0 | H44: 0 | I44: 0 | J44: 100 | K44: 0 | L44: 100 | M44: 100 | N44: 0 | O44: 0 | P44: 0 | Q44: 0 | R44: 0 | S44: 0 | T44: 0 | U44: 0 | V44: 0 | W44: 0 | X44: 0 | Y44: 0 | Z44: 0 | AA44: 0
A45: Barker, Nicole | B45: Save the Dunes Conservation Fund | C45: 249.6 | D45: 0 | E45: 0 | F45: 0 | G45: 0 | H45: 0 | I45: 0 | J45: 0 | K45: 0 | L45: 249.6 | M45: 0 | N45: 249.6 | O45: 0 | P45: 0 | Q45: 0 | R45: 0 | S45: 0 | T45: 0 | U45: 0 | V45: 0 | W45: 0 | X45: 0 | Y45: 0 | Z45: 0 | AA45: 249.6
A46: Barkley, Robbie T. | B46: Third House Advocacy Group | C46: 0 | D46: 0 | E46: 0 | F46: 0 | G46: 0 | H46: 0 | I46: 0 | J46: 0 | K46: 0 | L46: 0 | M46: 0 | N46: 0 | O46: 0 | P46: 0 | Q46: 0 | R46: 0 | S46: 0 | T46: 0 | U46: 0 | V46: 0 | W46: 0 | X46: 0 | Y46: 0 | Z46: 0 | AA46: 0
B47: Third House LLC | C47: 0 | D47: 0 | E47: 0 | F47: 0 | G47: 0 | H47: 0 | I47: 0 | J47: 0 | K47: 0 | L47: 0 | M47: 0 | N47: 0 | O47: 0 | P47: 0 | Q47: 0 | R47: 0 | S47: 0 | T47: 0 | U47: 0 | V47: 0 | W47: 0 | X47: 0 | Y47: 0 | Z47: 0 | AA47: 0
A48: Barnes & Thornburg, LLP | B48: non client expenses | C48: 0 | D48: 0 | E48: 0 | F48: 74.2 | G48: 0 | H48: 0 | I48: 0 | J48: 1365 | K48: 0 | L48: 1439.2 | M48: 0 | N48: 1439.2 | O48: 0 | P48: 0 | Q48: 0 | R48: 0 | S48: 0 | T48: 0 | U48: 40.4 | V48: 105 | W48: 0 | X48: 145.4 | Y48: 0 | Z48: 145.4 | AA48: 1584.6
B49: AALCO Distributing | C49: 22029.36 | D49: 10.74 | E49: 0 | F49: 0 | G49: 0 | H49: 56.16 | I49: 10.21 | J49: 106 | K49: 0 | L49: 22212.47 | M49: 22212.47 | N49: 0 | O49: 3258.68 | P49: 0 | Q49: 0 | R49: 0 | S49: 0 | T49: 0 | U49: 40.4 | V49: 2 | W49: 0 | X49: 3301.08 | Y49: 3301.08 | Z49: 0 | AA49: 0
B50: ADESA, Inc. | C50: 3075.24 | D50: 45.39 | E50: 0 | F50: 0 | G50: 0 | H50: 43.56 | I50: 10.21 | J50: 211 | K50: 0 | L50: 3385.4 | M50: 3385.4 | N50: -4.547473509e-13 | O50: 824.03 | P50: 0 | Q50: 0 | R50: 0 | S50: 0 | T50: 0 | U50: 40.4 | V50: 2 | W50: 0 | X50: 866.43 | Y50: 866.43 | Z50: 0 | AA50: -4.547473509e-13
B51: AW Holdings LLC | C51: 15457.56 | D51: 11.13 | E51: 0 | F51: 0 | G51: 0 | H51: 56.17 | I51: 7.16 | J51: 107 | K51: 0 | L51: 15639.02 | M51: 15639.02 | N51: -1.818989404e-12 | O51: 11750.59 | P51: 4.07 | Q51: 0 | R51: 0 | S51: 0 | T51: 10.87 | U51: 64.22 | V51: 2 | W51: 0 | X51: 11831.75 | Y51: 11831.75 | Z51: 0 | AA51: -1.818989404e-12
B52: Assn of IN Prosecuting Attorneys, Inc. | C52: 36448.11 | D52: 3.74 | E52: 0 | F52: 0 | G52: 0 | H52: 56.17 | I52: 0 | J52: 1 | K52: 0 | L52: 36509.02 | M52: 36509.02 | N52: 0 | O52: 41185.34 | P52: 40.12 | Q52: 0 | R52: 0 | S52: 0 | T52: 0 | U52: 40.4 | V52: 1 | W52: 0 | X52: 41266.86 | Y52: 41266.86 | Z52: 0 | AA52: 0
B53: BC Initiative, Inc. | C53: 10230.6 | D53: 0 | E53: 0 | F53: 0 | G53: 0 | H53: 43.57 | I53: 0 | J53: 107 | K53: 0 | L53: 10381.17 | M53: 10381.17 | N53: 0 | O53: 4620.7 | P53: 0 | Q53: 0 | R53: 0 | S53: 0 | T53: 0 | U53: 40.4 | V53: 2 | W53: 0 | X53: 4663.1 | Y53: 4663.1 | Z53: -9.094947018e-13 | AA53: -9.094947018e-13
B54: Best Buddies International | C54: 1570.2 | D54: 0 | E54: 0 | F54: 0 | G54: 0 | H54: 0 | I54: 0 | J54: 110 | K54: 0 | L54: 1680.2 | M54: 1680.2 | N54: 0 | O54: 1864.62 | P54: 0 | Q54: 0 | R54: 0 | S54: 0 | T54: 0 | U54: 0 | V54: 0 | W54: 0 | X54: 1864.62 | Y54: 1864.62 | Z54: 0 | AA54: 0
B55: Burford Group | C55: 6678.62 | D55: 0.87 | E55: 0 | F55: 0 | G55: 0 | H55: 56.17 | I55: 0 | J55: 105 | K55: 0 | L55: 6840.66 | M55: 6840.66 | N55: 0 | O55: 837.24 | P55: 0 | Q55: 0 | R55: 0 | S55: 0 | T55: 0 | U55: 18.5 | V55: 2 | W55: 0 | X55: 857.74 | Y55: 857.74 | Z55: 0 | AA55: 0
B56: City of Evansville | C56: 3916.94 | D56: 65.22 | E56: 0 | F56: 0 | G56: 0 | H56: 5.88 | I56: 0 | J56: 105 | K56: 0 | L56: 4093.04 | M56: 4093.04 | N56: 0 | O56: 117.91 | P56: 0 | Q56: 0 | R56: 0 | S56: 0 | T56: 0 | U56: 40.4 | V56: 2 | W56: 0 | X56: 160.31 | Y56: 160.31 | Z56: 0 | AA56: 0
B57: City of Indianapolis | C57: 22274.69 | D57: 3.74 | E57: 0 | F57: 0 | G57: 0 | H57: 12.6 | I57: 17.37 | J57: 106 | K57: 0 | L57: 22414.4 | M57: 22414.4 | N57: -3.637978807e-12 | O57: 14748.48 | P57: 4.07 | Q57: 0 | R57: 0 | S57: 0 | T57: 10.87 | U57: 64.22 | V57: 2 | W57: 0 | X57: 14829.64 | Y57: 14829.64 | Z57: 0 | AA57: -3.637978807e-12
B58: City of Marion | C58: 9249.1 | D58: 0 | E58: 0 | F58: 0 | G58: 0 | H58: 0 | I58: 0 | J58: 106 | K58: 0 | L58: 9355.1 | M58: 9355.1 | N58: 0 | O58: 2578.16 | P58: 0 | Q58: 0 | R58: 0 | S58: 0 | T58: 0 | U58: 40.4 | V58: 1 | W58: 0 | X58: 2619.56 | Y58: 2619.56 | Z58: 0 | AA58: 0
B59: City of Portage | L59: 0 | M59: 0 | N59: 0 | O59: 1683.83 | P59: 9.97 | Q59: 0 | R59: 0 | S59: 0 | T59: 0 | U59: 21.9 | V59: 2 | W59: 0 | X59: 1717.7 | Y59: 1717.7 | Z59: 0 | AA59: 0
B60: Coalition for Homelessness Intervention and Prev | C60: 17260.91 | D60: 0 | E60: 0 | F60: 0 | G60: 0 | H60: 0 | I60: 0 | J60: 55 | K60: 0 | L60: 17315.91 | M60: 17315.91 | N60: 0 | O60: 26633.74 | P60: 0 | Q60: 0 | R60: 0 | S60: 0 | T60: 0 | U60: 0 | V60: 0 | W60: 0 | X60: 26633.74 | Y60: 26633.74 | Z60: 0 | AA60: 0
B61: Corydry Sweetwater Conservancy | C61: 11484.37 | D61: 11.13 | E61: 0 | F61: 0 | G61: 0 | H61: 12.6 | I61: 12.91 | J61: 107 | K61: 0 | L61: 11628.01 | M61: 11628.01 | N61: 0 | X61: 0 | Z61: 0 | AA61: 0
B62: Distilled Spirits of the US, Inc. | C62: 30374.26 | D62: 28.81 | E62: 0 | F62: 0 | G62: 0 | H62: 56.17 | I62: 10.21 | J62: 213 | K62: 0 | L62: 30682.45 | M62: 30682.45 | N62: -3.637978807e-12 | O62: 19856.6 | P62: 18.88 | Q62: 0 | R62: 0 | S62: 0 | T62: 0 | U62: 40.4 | V62: 2 | W62: 0 | X62: 19917.88 | Y62: 19917.88 | Z62: 0 | AA62: -3.637978807e-12
B63: Eastern Howard Consolidated Schl | C63: 2219.32 | D63: 0.87 | E63: 0 | F63: 0 | G63: 0 | H63: 12.6 | I63: 0 | J63: 55 | K63: 0 | L63: 2287.79 | M63: 2287.79 | N63: 0 | X63: 0 | Z63: 0 | AA63: 0
B64: Eli Lilly Corporation | C64: 23225.78 | D64: 24.22 | E64: 0 | F64: 0 | G64: 0 | H64: 56.17 | I64: 0 | J64: 1 | K64: 0 | L64: 23307.17 | M64: 23307.17 | N64: 0 | O64: 22769.87 | P64: 0.78 | Q64: 0 | R64: 0 | S64: 0 | T64: 0 | U64: 81.92 | V64: 0 | W64: 0 | X64: 22852.57 | Y64: 22852.57 | Z64: -3.637978807e-12 | AA64: -3.637978807e-12
B65: Fndntn for Educ. Choice/ dba Friedman Fdntn | C65: 12200.46 | D65: 3.74 | E65: 0 | F65: 0 | G65: 0 | H65: 56.15 | I65: 7.16 | J65: 2 | K65: 0 | L65: 12269.51 | M65: 12269.51 | N65: -1.818989404e-12 | O65: 3473.48 | P65: 0 | Q65: 0 | R65: 0 | S65: 0 | T65: 0 | U65: 40.4 | V65: 3 | W65: 0 | X65: 3516.88 | Y65: 3516.88 | Z65: 0 | AA65: -1.818989404e-12
B66: Fndtns of E. Chicago | C66: 209.63 | D66: 0 | E66: 0 | F66: 0 | G66: 0 | H66: 0 | I66: 0 | J66: 57 | K66: 0 | L66: 266.63 | M66: 266.63 | N66: 0 | O66: 151.53 | P66: 0 | Q66: 0 | R66: 0 | S66: 0 | T66: 0 | U66: 40.4 | V66: 2 | W66: 0 | X66: 193.93 | Y66: 193.93 | Z66: 0 | AA66: 0
B67: Franklin Twshp Comm. School Corp | C67: 2234.17 | D67: 0.87 | E67: 0 | F67: 0 | G67: 0 | H67: 12.6 | I67: 0 | J67: 105 | K67: 0 | L67: 2352.64 | M67: 2352.64 | N67: 0 | X67: 0 | Z67: 0 | AA67: 0
B68: Health and Hospital Corporation of Marion Co | C68: 35189.05 | D68: 11.14 | E68: 0 | F68: 0 | G68: 0 | H68: 56.17 | I68: 28.55 | J68: 107 | K68: 0 | L68: 35391.91 | M68: 35391.91 | N68: 0 | O68: 21201.76 | P68: 21.23 | Q68: 0 | R68: 0 | S68: 0 | T68: 10.87 | U68: 64.22 | V68: 2 | W68: 0 | X68: 21300.08 | Y68: 21300.08 | Z68: -3.637978807e-12 | AA68: -3.637978807e-12
B69: Hebrew Orthodox Congregation | C69: 11283.74 | D69: 19.56 | E69: 0 | F69: 0 | G69: 0 | H69: 0 | I69: 31.6 | J69: 57 | K69: 0 | L69: 11391.9 | M69: 11391.9 | N69: 0 | O69: 82.49 | P69: 0 | Q69: 0 | R69: 0 | S69: 0 | T69: 0 | U69: 40.4 | V69: 2 | W69: 0 | X69: 124.89 | Y69: 124.89 | Z69: -1.421085472e-14 | AA69: -1.421085472e-14
B70: Hoosier Park | C70: 31696.25 | D70: 0.87 | E70: 0 | F70: 0 | G70: 0 | H70: 56.17 | I70: 0 | J70: 0 | K70: 0 | L70: 31753.29 | M70: 31753.29 | N70: -3.637978807e-12 | O70: 35815.85 | P70: 0 | Q70: 0 | R70: 0 | S70: 0 | T70: 0 | U70: 40.4 | V70: 1 | W70: 0 | X70: 35857.25 | Y70: 35857.25 | Z70: 0 | AA70: -3.637978807e-12
B71: Independent Colleges of IN | C71: 20344.07 | D71: 11.14 | E71: 0 | F71: 0 | G71: 0 | H71: 56.17 | I71: 12.91 | J71: 269 | K71: 0 | L71: =SUM(C71:K71) -> 20693.29 | M71: 20693.29 | N71: =SUM(L71-M71) -> -3.637978807e-12 | O71: 19768.57 | P71: 21.23 | Q71: 0 | R71: 0 | S71: 0 | T71: 10.87 | U71: 64.22 | V71: 2 | W71: 0 | X71: 19866.89 | Y71: 19866.89 | Z71: 0 | AA71: -3.637978807e-12
B72: Indiana American Water Company | C72: 12048.55 | D72: 13.97 | E72: 0 | F72: 0 | G72: 0 | H72: 56.17 | I72: 7.16 | J72: 322 | K72: 0 | L72: 12447.85 | M72: 12447.85 | N72: -1.818989404e-12 | O72: 14384.19 | P72: 48.24 | Q72: 0 | R72: 0 | S72: 0 | T72: 0 | U72: 40.4 | V72: 3 | W72: 0 | X72: =SUM(O72:W72) -> 14475.83 | Y72: 14475.83 | Z72: =SUM(X72-Y72) -> 0 | AA72: =SUM(N72+Z72) -> -1.818989404e-12
B73: IN Assn for the Education of Young Children | C73: 3796.4 | D73: 0 | E73: 0 | F73: 0 | G73: 0 | H73: 43.57 | I73: 7.16 | J73: 217 | K73: 0 | L73: 4064.13 | M73: 4064.13 | N73: 0 | O73: 2409.82 | P73: 28.45 | Q73: 0 | R73: 0 | S73: 0 | T73: 10.86 | U73: 55.05 | V73: 2 | W73: 0 | X73: 2506.18 | Y73: 2506.18 | Z73: 4.547473509e-13 | AA73: 4.547473509e-13
B74: Indiana Assn of County Commissioners | C74: 17974.88 | D74: 50.51 | E74: 0 | F74: 0 | G74: 0 | H74: 12.6 | I74: 7.16 | J74: 213 | K74: 0 | L74: 18258.15 | M74: 18258.15 | N74: -3.637978807e-12 | O74: 2444.44 | P74: 17.16 | Q74: 0 | R74: 0 | S74: 0 | T74: 0 | U74: 40.4 | V74: 3 | W74: 0 | X74: 2505 | Y74: 2505 | Z74: 0 | AA74: -3.637978807e-12
B75: Indiana Assn of Homes & Services for the Aging | C75: 11753.16 | D75: 3.74 | E75: 0 | F75: 0 | G75: 0 | H75: 56.17 | I75: 33.01 | J75: 213 | K75: 0 | L75: 12059.08 | M75: 12059.08 | N75: 0 | O75: 13060.49 | P75: 0.78 | Q75: 0 | R75: 0 | S75: 0 | T75: 0 | U75: 40.4 | V75: 3 | W75: 0 | X75: 13104.67 | Y75: 13104.67 | Z75: 0 | AA75: 0
B76: Indiana Bell Telephone d/b/a AT&T | C76: 20612.04 | D76: 13.96 | E76: 0 | F76: 0 | G76: 0 | H76: 56.17 | I76: 7.16 | J76: 1 | K76: 0 | L76: 20690.33 | M76: 20690.33 | N76: -3.637978807e-12 | O76: 20287.85 | P76: 4.07 | Q76: 0 | R76: 0 | S76: 0 | T76: 10.87 | U76: 64.22 | V76: 1 | W76: 0 | X76: 20368.01 | Y76: 20368.01 | Z76: 0 | AA76: -3.637978807e-12
B77: Indiana Board Depositories | C77: 16190.92 | D77: 24.72 | E77: 0 | F77: 0 | G77: 0 | H77: 12.6 | I77: 0 | J77: 107 | K77: 0 | L77: 16335.24 | M77: 16335.24 | N77: 0 | O77: 3531.85 | P77: 0 | Q77: 0 | R77: 0 | S77: 0 | T77: 0 | U77: 40.4 | V77: 5 | W77: 0 | X77: 3577.25 | Y77: 3577.25 | Z77: 0 | AA77: 0
B78: Indiana Bond Bank | C78: 40570.14 | D78: 0 | E78: 0 | F78: 0 | G78: 0 | H78: 0 | I78: 0 | J78: 107 | K78: 0 | L78: 40677.14 | M78: 40677.14 | N78: 0 | O78: 138.08 | P78: 0 | Q78: 0 | R78: 0 | S78: 0 | T78: 0 | U78: 0 | V78: 0 | W78: 0 | X78: 138.08 | Y78: 138.08 | Z78: 0 | AA78: 0
B79: IN Building Contractors Alliance | C79: 27783.46 | D79: 13.97 | E79: 0 | F79: 0 | G79: 0 | H79: 56.17 | I79: 12.91 | J79: 107 | K79: 0 | L79: 27973.51 | M79: 27973.51 | N79: 0 | O79: 24093.46 | P79: 4.07 | Q79: 0 | R79: 0 | S79: 0 | T79: 10.87 | U79: 64.22 | V79: 2 | W79: 0 | X79: 24174.62 | Y79: 24174.61 | Z79: 0.009999999998 | AA79: 0.009999999998
B80: IN Chptr Natl Acdmy Elder Law Attys | C80: 10950.43 | D80: 13.34 | E80: 0 | F80: 0 | G80: 0 | H80: 56.17 | I80: 7.16 | J80: 212 | K80: 0 | L80: 11239.1 | M80: 11239.1 | N80: 0 | O80: 3071.42 | P80: 17.94 | Q80: 0 | R80: 0 | S80: 0 | T80: 0 | U80: 40.4 | V80: 2 | W80: 0 | X80: 3131.76 | Y80: 3131.76 | Z80: 0 | AA80: 0
B81: Indiana Coalition for Arts | C81: 1134.69 | D81: 3.74 | E81: 0 | F81: 0 | G81: 0 | H81: 12.6 | I81: 7.16 | J81: 57 | K81: 0 | L81: 1215.19 | M81: 1215.19 | N81: 0 | O81: 1185.39 | P81: 0.78 | Q81: 0 | R81: 0 | S81: 0 | T81: 0 | U81: 40.4 | V81: 3 | W81: 0 | X81: 1229.57 | Y81: 1229.57 | Z81: 2.273736754e-13 | AA81: 2.273736754e-13
B82: Indiana County Recorders Assn | C82: 10194.22 | D82: 3.74 | E82: 0 | F82: 0 | G82: 0 | H82: 12.6 | I82: 0 | J82: 107 | K82: 0 | L82: 10317.56 | M82: 10317.56 | N82: 0 | O82: 3342.39 | P82: 0 | Q82: 0 | R82: 0 | S82: 0 | T82: 0 | U82: 40.4 | V82: 2 | W82: 0 | X82: 3384.79 | Y82: 3384.79 | Z82: 0 | AA82: 0
B83: Indiana County Treasurers Assn | C83: 9456.66 | D83: 3.74 | E83: 0 | F83: 0 | G83: 0 | H83: 12.6 | I83: 0 | J83: 107 | K83: 0 | L83: 9580 | M83: 9580 | N83: 0 | O83: 2852.86 | P83: 0 | Q83: 0 | R83: 0 | S83: 0 | T83: 0 | U83: 40.4 | V83: 2 | W83: 0 | X83: 2895.26 | Y83: 2895.26 | Z83: 0 | AA83: 0
B84: Indiana Education Savings Authority | C84: 20593.7 | D84: 3.74 | E84: 0 | F84: 0 | G84: 0 | H84: 12.6 | I84: 0 | J84: 107 | K84: 0 | L84: 20717.04 | M84: 20717.04 | N84: 0 | O84: 6645.72 | P84: 16.62 | Q84: 0 | R84: 0 | S84: 0 | T84: 0 | U84: 40.4 | V84: 1 | W84: 0 | X84: 6703.74 | Y84: 6703.74 | Z84: 0 | AA84: 0
B85: IN Energy Assn Inc. | C85: 80.7 | D85: 0 | E85: 0 | F85: 0 | G85: 0 | H85: 0 | I85: 0 | J85: 0 | K85: 0 | L85: 80.7 | M85: 80.7 | N85: 0 | X85: 0 | Z85: 0 | AA85: 0
B86: IN Grantmakers Alliance | C86: 5179.14 | D86: 0 | E86: 0 | F86: 0 | G86: 0 | H86: 0 | I86: 0 | J86: 166 | K86: 0 | L86: 5345.14 | M86: 5345.14 | N86: 0 | O86: 9145.13 | P86: 47.65 | Q86: 0 | R86: 0 | S86: 0 | T86: 10.86 | U86: 55.05 | V86: 4 | W86: 0 | X86: 9262.69 | Y86: 9262.69 | Z86: -1.818989404e-12 | AA86: -1.818989404e-12
B87: IN Health Information Exchange, Inc. | C87: 17134.85 | D87: 11.14 | E87: 0 | F87: 0 | G87: 0 | H87: 56.17 | I87: 17.37 | J87: 107 | K87: 0 | L87: 17326.53 | M87: 17326.53 | N87: -3.637978807e-12 | O87: 10236.21 | P87: 4.07 | Q87: 0 | R87: 0 | S87: 0 | T87: 10.87 | U87: 55.05 | V87: 2 | W87: 0 | X87: 10308.2 | Y87: 10308.2 | Z87: -1.818989404e-12 | AA87: -5.456968211e-12
B88: IN Logo Sign Grp | L88: 0 | M88: 0 | N88: 0 | O88: 3551.9 | P88: 0 | Q88: 0 | R88: 0 | S88: 0 | T88: 0 | U88: 40.4 | V88: 105 | W88: 0 | X88: 3697.3 | Y88: 3697.3 | Z88: 0 | AA88: 0
B89: IN Secretary of State | C89: 15649.43 | D89: 3.74 | E89: 0 | F89: 0 | G89: 0 | H89: 12.6 | I89: 7.16 | J89: 107 | K89: 0 | L89: 15779.93 | M89: 15779.93 | N89: 0 | O89: 75.77 | P89: 0 | Q89: 0 | R89: 0 | S89: 0 | T89: 0 | U89: 40.4 | V89: 2 | W89: 0 | X89: 118.17 | Y89: 118.17 | Z89: -1.421085472e-14 | AA89: -1.421085472e-14
B90: Indpls Public Transpo Corporation | C90: 18862.39 | D90: 0.87 | E90: 0 | F90: 0 | G90: 0 | H90: 12.6 | I90: 0 | J90: 105 | K90: 0 | L90: 18980.86 | M90: 18980.86 | N90: -3.637978807e-12 | O90: 4380.24 | P90: 0 | Q90: 0 | R90: 0 | S90: 0 | T90: 0 | U90: 40.4 | V90: 2 | W90: 0 | X90: 4422.64 | Y90: 4422.64 | Z90: -9.094947018e-13 | AA90: -4.547473509e-12
B91: Juridica Capital Mgmnt | C91: 8003.25 | D91: 0.87 | E91: 0 | F91: 0 | G91: 0 | H91: 5.88 | I91: 0 | J91: 105 | K91: 0 | L91: 8115 | M91: 8115 | N91: 0 | O91: 75.77 | P91: 0 | Q91: 0 | R91: 0 | S91: 0 | T91: 0 | U91: 40.4 | V91: 2 | W91: 0 | X91: 118.17 | Y91: 118.17 | Z91: -1.421085472e-14 | AA91: -1.421085472e-14
B92: Kokomo-Center Twshp Consl School | C92: 2187.1 | D92: 0 | E92: 0 | F92: 0 | G92: 0 | H92: 0 | I92: 0 | J92: 105 | K92: 0 | L92: 2292.1 | M92: 2292.1 | N92: 0 | X92: 0 | Z92: 0 | AA92: 0
B93: Lake Co Solid Waste Mgmnt District | C93: 33329.62 | D93: 2.87 | E93: 0 | F93: 0 | G93: 0 | H93: 0 | I93: 7.16 | J93: 1 | K93: 0 | L93: 33340.65 | M93: 33340.65 | N93: 7.275957614e-12 | O93: 13152.75 | P93: 0 | Q93: 0 | R93: 0 | S93: 0 | T93: 0 | U93: 81.92 | V93: 1 | W93: 0 | X93: 13235.67 | Y93: 13235.67 | Z93: 0 | AA93: 7.275957614e-12
B94: The Majestic Star Casino | C94: 27793.19 | D94: 3.74 | E94: 0 | F94: 0 | G94: 0 | H94: 56.17 | I94: 23.12 | J94: 107 | K94: 0 | L94: 27983.22 | M94: 27983.22 | N94: -3.637978807e-12 | O94: 23724.29 | P94: 4.07 | Q94: 0 | R94: 0 | S94: 0 | T94: 10.87 | U94: 64.22 | V94: 107 | W94: 0 | X94: 23910.45 | Y94: 23910.45 | Z94: 0 | AA94: -3.637978807e-12
B95: Manatron | C95: 16939.79 | D95: 3.74 | E95: 0 | F95: 0 | G95: 0 | H95: 56.17 | I95: 12.91 | J95: 213 | K95: 0 | L95: 17225.61 | M95: 17225.61 | N95: 0 | O95: 15745.94 | P95: 4.07 | Q95: 0 | R95: 0 | S95: 0 | T95: 10.87 | U95: 55.05 | V95: 3 | W95: 0 | X95: 15818.93 | Y95: 15818.93 | Z95: 0 | AA95: 0
B96: Marion Superior Courts | C96: 3763.19 | D96: 3.74 | E96: 0 | F96: 0 | G96: 0 | H96: 56.17 | I96: 7.16 | J96: 107 | K96: 0 | L96: 3937.26 | M96: 3937.26 | N96: -4.547473509e-13 | O96: 4160.79 | P96: 0 | Q96: 0 | R96: 0 | S96: 0 | T96: 0 | U96: 40.4 | V96: 2 | W96: 0 | X96: 4203.19 | Y96: 4203.19 | Z96: 0 | AA96: -4.547473509e-13
B97: Medco Health | C97: 21946.26 | D97: 155.92 | E97: 0 | F97: 0 | G97: 0 | H97: 56.17 | I97: 188.13 | J97: 212 | K97: 0 | L97: =SUM(C97:K97) -> 22558.48 | M97: 22558.48 | N97: =SUM(L97-M97) -> -3.637978807e-12 | X97: =SUM(O97:W97) -> 0 | Z97: =SUM(X97-Y97) -> 0 | AA97: =SUM(N97+Z97) -> -3.637978807e-12
B98: Metro Schl District Decatur Twshp | C98: 2261.07 | D98: 0.87 | E98: 0 | F98: 0 | G98: 0 | H98: 12.58 | I98: 0 | J98: 105 | K98: 0 | L98: 2379.52 | M98: 2379.52 | N98: 0 | X98: 0 | Z98: 0 | AA98: 0
B99: Metro Schl District Lawrence Twshp | C99: 2207.27 | D99: 0.87 | E99: 0 | F99: 0 | G99: 0 | H99: 12.58 | I99: 0 | J99: 105 | K99: 0 | L99: 2325.72 | M99: 2325.72 | N99: 0 | X99: 0 | Z99: 0 | AA99: 0
B100: Metro Schl District Perry Twshp | C100: 2234.17 | D100: 0.87 | E100: 0 | F100: 0 | G100: 0 | H100: 12.58 | I100: 0 | J100: 105 | K100: 0 | L100: 2352.62 | M100: 2352.62 | N100: 0 | X100: 0 | Z100: 0 | AA100: 0
B101: Metro Schl District Warren Twshp | C101: 2234.17 | D101: 0.87 | E101: 0 | F101: 0 | G101: 0 | H101: 12.58 | I101: 0 | J101: 105 | K101: 0 | L101: =SUM(C101:K101) -> 2352.62 | M101: 2352.62 | N101: =SUM(L101-M101) -> 0 | X101: =SUM(O101:W101) -> 0 | Z101: =SUM(X101-Y101) -> 0 | AA101: =SUM(N101+Z101) -> 0
B102: Microsoft | C102: 6002.15 | D102: 0 | E102: 0 | F102: 0 | G102: 0 | H102: 43.57 | I102: 7.16 | J102: 107 | K102: 0 | L102: 6159.88 | M102: 6159.88 | N102: -9.094947018e-13 | O102: 8948.79 | P102: 31.27 | Q102: 0 | R102: 0 | S102: 0 | T102: 10.86 | U102: 55.05 | V102: 4 | W102: 0 | X102: 9049.97 | Y102: 9049.97 | Z102: 1.818989404e-12 | AA102: 9.094947018e-13
B103: Reed Elsevier, Inc. | C103: 18373.24 | D103: 3.74 | E103: 0 | F103: 0 | G103: 0 | H103: 56.15 | I103: 7.16 | J103: 107 | K103: 0 | L103: 18547.29 | M103: 18547.29 | N103: 3.637978807e-12 | O103: 21705.09 | P103: 21.26 | Q103: 0 | R103: 0 | S103: 0 | T103: 228.18 | U103: 64.22 | V103: 3 | W103: 0 | X103: 22021.75 | Y103: 22021.75 | Z103: 0 | AA103: 3.637978807e-12
B104: Res-Care, Inc. | C104: 16414.38 | D104: 13.97 | E104: 0 | F104: 0 | G104: 0 | H104: 56.15 | I104: 12.91 | J104: 213 | K104: 0 | L104: =SUM(C104:K104) -> 16710.41 | M104: 16710.41 | N104: =SUM(L104-M104) -> 3.637978807e-12 | O104: 12886.92 | P104: 4.07 | Q104: 0 | R104: 0 | S104: 0 | T104: 228.18 | U104: 64.22 | V104: 3 | W104: 0 | X104: =SUM(O104:W104) -> 13186.39 | Y104: 13186.39 | Z104: =SUM(X104-Y104) -> 0 | AA104: =SUM(N104+Z104) -> 3.637978807e-12
B105: RYO Machine Rental | C105: 18348.5 | D105: 0.87 | E105: 0 | F105: 0 | G105: 0 | H105: 56.15 | I105: 0 | J105: 105 | K105: 0 | L105: =SUM(C105:K105) -> 18510.52 | M105: 18510.52 | N105: =SUM(L105-M105) -> 0 | O105: 1695.78 | P105: 0 | Q105: 0 | R105: 0 | S105: 0 | T105: 0 | U105: 0 | V105: 2 | W105: 0 | X105: 1697.78 | Y105: 1697.78 | Z105: 0 | AA105: 0
B106: SICPA Product Security LLC | C106: 3101.99 | D106: 3.74 | E106: 0 | F106: 0 | G106: 0 | H106: 2.83 | I106: 0 | J106: 107 | K106: 0 | L106: 3215.56 | M106: 3215.56 | N106: -4.547473509e-13 | X106: 0 | Z106: 0 | AA106: -4.547473509e-13
B107: Simon Property Group, LP | C107: 10633.55 | D107: 3.74 | E107: 0 | F107: 0 | G107: 0 | H107: 79.32 | I107: 0 | J107: 213 | K107: 0 | L107: 10929.61 | M107: 10929.61 | N107: -1.818989404e-12 | O107: 387.84 | P107: 0 | Q107: 0 | R107: 0 | S107: 0 | T107: 0 | U107: 40.4 | V107: 3 | W107: 0 | X107: 431.24 | Y107: 431.24 | Z107: -5.684341886e-14 | AA107: -1.875832822e-12
B108: Stand For Children | L108: 0 | M108: 0 | N108: 0 | O108: 12324.97 | P108: 3.29 | Q108: 0 | R108: 0 | S108: 0 | T108: 10.86 | U108: 55.05 | V108: 0 | W108: 0 | X108: 12394.17 | Y108: 12394.17 | Z108: 0 | AA108: 0
B109: State of IN Public Empl Def Comp Plan | C109: 14430.44 | D109: 3.74 | E109: 0 | F109: 0 | G109: 0 | H109: 56.15 | I109: 0 | J109: 107 | K109: 0 | L109: 14597.33 | M109: 14597.33 | N109: 0 | O109: 2799.06 | P109: 0 | Q109: 0 | R109: 0 | S109: 0 | T109: 0 | U109: 40.4 | V109: 2 | W109: 0 | X109: 2841.46 | Y109: 2841.46 | Z109: 0 | AA109: 0
B110: Tax Management Assn, Inc. | C110: 4653.9 | D110: 0 | E110: 0 | F110: 0 | G110: 0 | H110: 0 | I110: 0 | J110: 107 | K110: 0 | L110: 4760.9 | M110: 4760.9 | N110: 0 | O110: 7388.71 | P110: 56.83 | Q110: 0 | R110: 0 | S110: 0 | T110: 10.86 | U110: 55.05 | V110: 2 | W110: 0 | X110: 7513.45 | Y110: 7513.45 | Z110: 0 | AA110: 0
B111: Taylor Community Schools | C111: 2185.7 | D111: 0.87 | E111: 0 | F111: 0 | G111: 0 | H111: 12.58 | I111: 0 | J111: 105 | K111: 0 | L111: =SUM(C111:K111) -> 2304.15 | M111: 2304.15 | N111: =SUM(L111-M111) -> -4.547473509e-13 | X111: 0 | Z111: 0 | AA111: -4.547473509e-13
B112: Teach for America-Indpls | C112: 7736.6 | D112: 0.87 | E112: 0 | F112: 0 | G112: 0 | H112: 12.58 | I112: 0 | J112: 55 | K112: 0 | L112: 7805.05 | M112: 7805.05 | N112: 0 | O112: 13626.81 | P112: 3.29 | Q112: 0 | R112: 0 | S112: 0 | T112: 10.86 | U112: 55.05 | V112: 107 | W112: 0 | X112: 13803.01 | Y112: 13803.01 | Z112: 0 | AA112: 0
B113: Town of Fishers | C113: 12115.01 | D113: 18.74 | E113: 0 | F113: 0 | G113: 0 | H113: 12.58 | I113: 7.16 | J113: 107 | K113: 0 | L113: 12260.49 | M113: 12260.49 | N113: 0 | O113: 6880.07 | P113: 0.78 | Q113: 0 | R113: 0 | S113: 0 | T113: 0 | U113: 40.4 | V113: 2 | W113: 0 | X113: 6923.25 | Y113: 6923.25 | Z113: -9.094947018e-13 | AA113: -9.094947018e-13
B114: Town of Griffith | C114: 4212.91 | D114: 48.18 | E114: 0 | F114: 0 | G114: 0 | H114: 0 | I114: 0 | J114: 107 | K114: 0 | L114: 4368.09 | M114: 4368.09 | N114: 0 | O114: 8578.54 | P114: 9.97 | Q114: 0 | R114: 0 | S114: 0 | T114: 0 | U114: 40.4 | V114: 2 | W114: 0 | X114: 8630.91 | Y114: 8630.91 | Z114: 0 | AA114: 0
B115: Town of Munster | C115: 9640.59 | D115: 53.74 | E115: 0 | F115: 0 | G115: 0 | H115: 12.58 | I115: 7.16 | J115: 106 | K115: 0 | L115: 9820.07 | M115: 9820.07 | N115: 0 | O115: 7662.25 | P115: 48.43 | Q115: 0 | R115: 0 | S115: 0 | T115: 10.86 | U115: 55.05 | V115: 1 | W115: 0 | X115: 7777.59 | Y115: 7777.59 | Z115: 0 | AA115: 0
B116: Town of Speedway Redevelop Comm. | C116: 22067.43 | D116: 3.74 | E116: 0 | F116: 0 | G116: 0 | H116: 12.58 | I116: 0 | J116: 315 | K116: 0 | L116: 22398.75 | M116: 22398.75 | N116: 3.637978807e-12 | O116: 3417.89 | P116: 0 | Q116: 0 | R116: 0 | S116: 0 | T116: 0 | U116: 40.4 | V116: 2 | W116: 0 | X116: 3460.29 | Y116: 3460.29 | Z116: 0 | AA116: 3.637978807e-12
B117: UHS of Delaware Inc. | C117: 8031.96 | D117: 0 | E117: 0 | F117: 0 | G117: 0 | H117: 0 | I117: 7.16 | J117: 107 | K117: 0 | L117: 8146.12 | M117: 8146.12 | N117: 0 | O117: 7134.99 | P117: 47.65 | Q117: 0 | R117: 0 | S117: 0 | T117: 10.86 | U117: 55.05 | V117: 2 | W117: 0 | X117: =SUM(O117:W117) -> 7250.55 | Y117: 7250.55 | Z117: =SUM(X117-Y117) -> -9.094947018e-13 | AA117: =SUM(N117+Z117) -> -9.094947018e-13
B118: University of Notre Dame du Lac | C118: 21193.44 | D118: 21.39 | E118: 0 | F118: 0 | G118: 0 | H118: 12.58 | I118: 0 | J118: 114 | K118: 0 | L118: 21341.41 | M118: 21341.41 | N118: 0 | O118: 18329.26 | P118: 0.78 | Q118: 0 | R118: 0 | S118: 0 | T118: 0 | U118: 81.92 | V118: 3 | W118: 0 | X118: =SUM(O118:W118) -> 18414.96 | Y118: 18414.96 | Z118: =SUM(X118-Y118) -> -3.637978807e-12 | AA118: =SUM(N118+Z118) -> -3.637978807e-12
B119: Walmart | C119: 50775.58 | D119: 50.99 | E119: 0 | F119: 0 | G119: 0 | H119: 56.16 | I119: 15.96 | J119: 1 | K119: 0 | L119: 50899.69 | M119: 50899.69 | N119: 0 | O119: 33089.94 | P119: 0 | Q119: 0 | R119: 0 | S119: 0 | T119: 0 | U119: 40.4 | V119: 1 | W119: 0 | X119: =SUM(O119:W119) -> 33131.34 | Y119: 33131.34 | Z119: =SUM(X119-Y119) -> 7.275957614e-12 | AA119: =SUM(N119+Z119) -> 7.275957614e-12
B120: Wireless Enhanced 911 Advisory Board | C120: 18437.04 | D120: 29.32 | E120: 0 | F120: 0 | G120: 0 | H120: 12.58 | I120: 0 | J120: 107 | K120: 0 | L120: 18585.94 | M120: 18585.94 | N120: 3.637978807e-12 | O120: 6350.51 | P120: 14.88 | Q120: 0 | R120: 0 | S120: 0 | T120: 0 | U120: 40.4 | V120: 2 | W120: 0 | X120: =SUM(O120:W120) -> 6407.79 | Y120: 6407.79 | Z120: =SUM(X120-Y120) -> 0 | AA120: =SUM(N120+Z120) -> 3.637978807e-12
B121: Xerox | C121: 21745.08 | D121: 13.96 | E121: 0 | F121: 0 | G121: 0 | H121: 56.16 | I121: 12.91 | J121: 107 | K121: 0 | L121: 21935.11 | M121: 21935.11 | N121: 0 | O121: 16114.48 | P121: 4.07 | Q121: 0 | R121: 0 | S121: 0 | T121: 10.86 | U121: 64.22 | V121: 2 | W121: 0 | X121: =SUM(O121:W121) -> 16195.63 | Y121: 16195.63 | Z121: =SUM(X121-Y121) -> 0 | AA121: =SUM(N121+Z121) -> 0
A122: Barnett, Jr., John V. | B122: Bose Public Affairs Group | C122: 0 | D122: 0 | E122: 0 | F122: 53 | G122: 0 | H122: 0 | I122: 0 | J122: 0 | K122: 0 | L122: 53 | M122: 53 | N122: 0 | X122: 0 | Z122: 0 | AA122: 0
A123: Barney, Tammie | B123: Grtr Indianapolis Chamber of Commerce | C123: 0 | D123: 0 | E123: 0 | F123: 0 | G123: 0 | H123: 0 | I123: 0 | J123: 0 | K123: 0 | L123: 0 | M123: 0 | N123: 0 | O123: 0 | P123: 0 | Q123: 0 | R123: 0 | S123: 0 | T123: 0 | U123: 0 | V123: 0 | W123: 0 | X123: 0 | Y123: 0 | Z123: 0 | AA123: 0
A124: Barth, John | B124: Coordinated Care Corp IN, Inc. | C124: 0 | D124: 0 | E124: 0 | F124: 0 | G124: 0 | H124: 0 | I124: 0 | J124: 0 | K124: 0 | L124: 0 | M124: 0 | N124: 0 | O124: 0 | P124: 0 | Q124: 0 | R124: 0 | S124: 0 | T124: 0 | U124: 0 | V124: 0 | W124: 0 | X124: 0 | Y124: 0 | Z124: 0 | AA124: 0
A125: Bauer, Beth | B125: ACEC IN | C125: 0 | D125: 0 | E125: 0 | F125: 0 | G125: 0 | H125: 0 | I125: 0 | J125: 0 | K125: 0 | L125: 0 | M125: 0 | N125: 0 | O125: 0 | P125: 0 | Q125: 0 | R125: 0 | S125: 0 | T125: 0 | U125: 0 | V125: 0 | W125: 0 | X125: 0 | Y125: 0 | Z125: 0 | AA125: 0
A126: Bazemore, Andrea | B126: Capitol Assets | C126: 0 | D126: 0 | E126: 0 | F126: 0 | G126: 0 | H126: 0 | I126: 0 | J126: 100 | K126: 0 | L126: 100 | M126: 0 | N126: 100 | O126: 0 | P126: 0 | Q126: 0 | R126: 0 | S126: 0 | T126: 0 | U126: 0 | V126: 0 | W126: 0 | X126: 0 | Y126: 0 | Z126: 0 | AA126: 100
A127: Beaumont, Christopher | B127: IN Credit Union League | C127: 0 | D127: 0 | E127: 0 | F127: 0 | G127: 0 | H127: 0 | I127: 0 | J127: 0 | K127: 0 | L127: 0 | M127: 0 | N127: 0 | O127: 0 | P127: 0 | Q127: 0 | R127: 0 | S127: 0 | T127: 0 | U127: 0 | V127: 0 | W127: 0 | X127: 0 | Y127: 0 | Z127: 0 | AA127: 0
A128: Beck, Robin | B128: Ice Miller | C128: 0 | D128: 0 | E128: 0 | F128: 0 | G128: 0 | H128: 0 | I128: 0 | J128: 0 | K128: 0 | L128: 0 | M128: 0 | N128: 0 | O128: 0 | P128: 0 | Q128: 0 | R128: 0 | S128: 0 | T128: 0 | U128: 0 | V128: 0 | W128: 0 | X128: 0 | Y128: 0 | Z128: 0 | AA128: 0
A129: Bedan, Greg | B129: The Third House Advocacy Group | C129: 0 | D129: 0 | E129: 0 | F129: 0 | G129: 0 | H129: 0 | I129: 0 | J129: 0 | K129: 0 | L129: 0 | M129: 0 | N129: 0 | O129: 0 | P129: 0 | Q129: 0 | R129: 0 | S129: 0 | T129: 0 | U129: 0 | V129: 0 | W129: 0 | X129: 0 | Y129: 0 | Z129: 0 | AA129: 0
B130: The Third House LLC | C130: 0 | D130: 0 | E130: 0 | F130: 0 | G130: 0 | H130: 0 | I130: 0 | J130: 0 | K130: 0 | L130: 0 | M130: 0 | N130: 0 | O130: 0 | P130: 0 | Q130: 0 | R130: 0 | S130: 0 | T130: 0 | U130: 0 | V130: 0 | W130: 0 | X130: =SUM(O130:W130) -> 0 | Y130: 0 | Z130: =SUM(X130-Y130) -> 0 | AA130: =SUM(N130+Z130) -> 0
A131: Beebe, Scherer & Assoc | B131: non client expenses | L131: 0 | N131: 0 | O131: 0 | P131: 0 | Q131: 0 | R131: 0 | S131: 0 | T131: 0 | U131: 0 | V131: 0 | W131: 0 | X131: 0 | Y131: 0 | Z131: 0 | AA131: 0
B132: College of American Pathologists | C132: 0.67 | D132: 0 | E132: 0 | F132: 0 | G132: 0 | H132: 0 | I132: 0 | J132: 0 | K132: 0 | L132: 0.67 | M132: 0 | N132: 0.67 | O132: 0 | P132: 0 | Q132: 0 | R132: 0 | S132: 0 | T132: 0 | U132: 0 | V132: 0 | W132: 0 | X132: =SUM(O132:W132) -> 0 | Y132: 0 | Z132: =SUM(X132-Y132) -> 0 | AA132: =SUM(N132+Z132) -> 0.67
B133: IN Ambulance Assn dba IN EMS Assn | C133: 2.89 | D133: 0 | E133: 0 | F133: 0 | G133: 0 | H133: 0 | I133: 0 | J133: 0 | K133: 0 | L133: 2.89 | M133: 2.89 | N133: 0 | X133: 0 | Z133: 0 | AA133: 0
B134: IN Amusement & Music Operators Assn | C134: 6.33 | D134: 0 | E134: 0 | F134: 10.09 | G134: 0 | H134: 0 | I134: 0 | J134: 0 | K134: 0 | L134: 16.42 | M134: 0 | N134: 16.42 | O134: 5 | P134: 0 | Q134: 0 | R134: 0 | S134: 0 | T134: 0 | U134: 0 | V134: 0 | W134: 0 | X134: 5 | Y134: 0 | Z134: 5 | AA134: 21.42
B135: IN Assn for Marriage & Family Therapists | C135: 6 | D135: 0 | E135: 0 | F135: 0 | G135: 0 | H135: 0 | I135: 0 | J135: 105 | K135: 0 | L135: 111 | M135: 111 | N135: 0 | O135: 0 | P135: 0 | Q135: 0 | R135: 0 | S135: 0 | T135: 0 | U135: 0 | V135: 0 | W135: 0 | X135: 0 | Y135: 0 | Z135: 0 | AA135: 0
B136: IN Assn Nurse Anesthetists | C136: 6 | D136: 0 | E136: 0 | F136: 0 | G136: 0 | H136: 0 | I136: 0 | J136: 105 | K136: 0 | L136: 111 | M136: 111 | N136: 0 | O136: 3 | P136: 0 | Q136: 0 | R136: 0 | S136: 0 | T136: 0 | U136: 0 | V136: 0 | W136: 0 | X136: 3 | Y136: 3 | Z136: 0 | AA136: 0
B137: IN Chptr American Physical Thrpy Assn | C137: 7.88 | D137: 0 | E137: 0 | F137: 0 | G137: 0 | H137: 0 | I137: 0 | J137: 0 | K137: 0 | L137: 7.88 | M137: 0 | N137: 7.88 | O137: 10.5 | P137: 0 | Q137: 0 | R137: 0 | S137: 0 | T137: 0 | U137: 0 | V137: 0 | W137: 0 | X137: 10.5 | Y137: 0 | Z137: 10.5 | AA137: 18.38
B138: IN Dental Hygienists Assn | C138: 1.46 | D138: 0 | E138: 0 | F138: 0 | G138: 0 | H138: 0 | I138: 0 | J138: 0 | K138: 0 | L138: 1.46 | M138: 0 | N138: 1.46 | O138: 0 | P138: 0 | Q138: 0 | R138: 0 | S138: 0 | T138: 0 | U138: 0 | V138: 0 | W138: 0 | X138: 0 | Y138: 0 | Z138: 0 | AA138: 1.46
B139: IN Fire Chiefs Assn | C139: 100 | D139: 0 | E139: 0 | F139: 0 | G139: 0 | H139: 0 | I139: 0 | J139: 105 | K139: 0 | L139: 205 | M139: 205 | N139: 0 | O139: 0 | P139: 0 | Q139: 0 | R139: 0 | S139: 0 | T139: 0 | U139: 0 | V139: 0 | W139: 0 | X139: =SUM(O139:W139) -> 0 | Y139: 0 | Z139: =SUM(X139-Y139) -> 0 | AA139: =SUM(N139+Z139) -> 0
B140: IN Health Care Assn | C140: 0 | D140: 0 | E140: 0 | F140: 0 | G140: 0 | H140: 0 | I140: 0 | J140: 0 | K140: 0 | L140: 0 | M140: 0 | N140: 0 | O140: 9 | P140: 0 | Q140: 0 | R140: 0 | S140: 0 | T140: 0 | U140: 0 | V140: 0 | W140: 0 | X140: =SUM(O140:W140) -> 9 | Y140: 0 | Z140: =SUM(X140-Y140) -> 9 | AA140: =SUM(N140+Z140) -> 9
B141: IN Society of Respiratory Care | C141: 6.2 | D141: 0 | E141: 0 | F141: 0 | G141: 0 | H141: 0 | I141: 0 | J141: 55 | K141: 0 | L141: 61.2 | M141: 61.2 | N141: 0 | O141: 0 | P141: 0 | Q141: 0 | R141: 0 | S141: 0 | T141: 0 | U141: 0 | V141: 0 | W141: 0 | X141: 0 | Y141: 0 | Z141: 0 | AA141: 0
B142: IN Speeh Language Hearing Assn | C142: 0 | D142: 0 | E142: 0 | F142: 0 | G142: 0 | H142: 0 | I142: 0 | J142: 105 | K142: 0 | L142: 105 | M142: 105 | N142: 0 | O142: 0 | P142: 0 | Q142: 0 | R142: 0 | S142: 0 | T142: 0 | U142: 0 | V142: 0 | W142: 0 | X142: 0 | Y142: 0 | Z142: 0 | AA142: 0
B143: IN Vending Council | C143: 23.28 | D143: 0 | E143: 0 | F143: 0 | G143: 0 | H143: 0 | I143: 0 | J143: 0 | K143: 0 | L143: =SUM(C143:K143) -> 23.28 | M143: 0 | N143: =SUM(L143-M143) -> 23.28 | O143: 45.3 | P143: 0 | Q143: 0 | R143: 0 | S143: 0 | T143: 0 | U143: 0 | V143: 0 | W143: 0 | X143: =SUM(O143:W143) -> 45.3 | Y143: 0 | Z143: =SUM(X143-Y143) -> 45.3 | AA143: =SUM(N143+Z143) -> 68.58
B144: IN Wholesale Distributors Assn | C144: 51.15 | D144: 0 | E144: 0 | F144: 10.08 | G144: 0 | H144: 0 | I144: 0 | J144: 0 | K144: 0 | L144: 61.23 | M144: 0 | N144: 61.23 | O144: 0 | P144: 0 | Q144: 0 | R144: 0 | S144: 0 | T144: 0 | U144: 0 | V144: 0 | W144: 0 | X144: 0 | Y144: 0 | Z144: 0 | AA144: 61.23
A145: Beebe, Steven | B145: Beebe Scherer & Assoc. | C145: 0 | D145: 0 | E145: 0 | F145: 0 | G145: 0 | H145: 0 | I145: 0 | J145: 0 | K145: 0 | L145: 0 | M145: 0 | N145: 0 | X145: 0 | Z145: 0 | AA145: 0
A146: Beiswenger, Robert Daniel | B146: Indiana Right to Work Committee | C146: 0 | D146: 0 | E146: 0 | F146: 0 | G146: 0 | H146: 0 | I146: 0 | J146: 0 | K146: 0 | L146: 0 | M146: 0 | N146: 0 | X146: 0 | Z146: 0 | AA146: 0
A147: Belch, Louis | B147: The Corydon Group | C147: 0 | D147: 0 | E147: 0 | F147: 1824.37 | G147: 0 | H147: 788.93 | I147: 174.69 | J147: 0 | K147: 0 | L147: 2787.99 | M147: 2743.44 | N147: 44.55 | O147: 0 | P147: 0 | Q147: 0 | R147: 374.72 | S147: 0 | T147: 0 | U147: 435 | V147: 0 | W147: 0 | X147: 809.72 | Y147: 809.72 | Z147: 0 | AA147: 44.55
A148: Bell, Jason | B148: IN Trial Lawyers Assn | C148: 0 | D148: 0 | E148: 0 | F148: 0 | G148: 0 | H148: 0 | I148: 0 | J148: 100 | K148: 0 | L148: 100 | M148: 100 | N148: 0 | O148: 0 | P148: 0 | Q148: 0 | R148: 0 | S148: 0 | T148: 0 | U148: 0 | V148: 0 | W148: 0 | X148: 0 | Y148: 0 | Z148: 0 | AA148: 0
A149: Bell, Matthew | B149: Regional Chamber of NE IN | C149: 0 | D149: 0 | E149: 0 | F149: 0 | G149: 0 | H149: 0 | I149: 0 | J149: 0 | K149: 0 | L149: 0 | M149: 0 | N149: 0 | X149: =SUM(O149:W149) -> 0 | Z149: =SUM(X149-Y149) -> 0 | AA149: =SUM(N149+Z149) -> 0
A150: Bellamy, Calvin | B150: Krieg DeVault, LLP | C150: 0 | D150: 0 | E150: 0 | F150: 0 | G150: 0 | H150: 0 | I150: 0 | J150: 0 | K150: 0 | L150: 0 | M150: 0 | N150: 0 | O150: 0 | P150: 0 | Q150: 0 | R150: 0 | S150: 0 | T150: 0 | U150: 0 | V150: 0 | W150: 0 | X150: 0 | Y150: 0 | Z150: 0 | AA150: 0
A151: Benen, Sandie | B151: GlaxoSmithKline | C151: 0 | D151: 0 | E151: 0 | F151: 200.71 | G151: 0 | H151: 569.65 | I151: 0 | J151: 0 | K151: 0 | L151: 770.36 | M151: 770.36 | N151: 0 | O151: 0 | P151: 0 | Q151: 0 | R151: 115.77 | S151: 0 | T151: 75.08 | U151: 0 | V151: 0 | W151: 0 | X151: 190.85 | Y151: 190.85 | Z151: 0 | AA151: 0
A152: Bennett, Patrick | B152: PKB Consulting LLC | C152: 0 | D152: 0 | E152: 0 | F152: 0 | G152: 0 | H152: 0 | I152: 0 | J152: 100 | K152: 0 | L152: 100 | M152: 0 | N152: 100 | O152: 0 | P152: 0 | Q152: 0 | R152: 0 | S152: 0 | T152: 0 | U152: 0 | V152: 0 | W152: 0 | X152: 0 | Y152: 0 | Z152: 0 | AA152: 100
A153: Bennett Steury, Rachel | B153: Pub Policy Fund dba All. American Manuf | C153: 0 | D153: 0 | E153: 0 | F153: 0 | G153: 0 | H153: 0 | I153: 0 | J153: 0 | K153: 0 | L153: 0 | M153: 0 | N153: 0 | O153: 0 | P153: 0 | Q153: 0 | R153: 0 | S153: 0 | T153: 0 | U153: 0 | V153: 0 | W153: 0 | X153: =SUM(O153:W153) -> 0 | Y153: 0 | Z153: =SUM(X153-Y153) -> 0 | AA153: =SUM(N153+Z153) -> 0
A154: Bennett Boehning & Clary LLP | B154: Bio Town Ag | L154: 0 | M154: 0 | N154: 0 | O154: 0 | P154: 0 | Q154: 0 | R154: 0 | S154: 0 | T154: 0 | U154: 0 | V154: 100 | W154: 0 | X154: =SUM(O154:W154) -> 100 | Y154: 100 | Z154: =SUM(X154-Y154) -> 0 | AA154: =SUM(N154+Z154) -> 0
A155: Berger, Andrew | B155: Assn of IN Counties | C155: 0 | D155: 0 | E155: 0 | F155: 0 | G155: 0 | H155: 0 | I155: 0 | J155: 0 | K155: 0 | L155: 0 | M155: 0 | N155: 0 | O155: 0 | P155: 0 | Q155: 0 | R155: 0 | S155: 0 | T155: 0 | U155: 0 | V155: 0 | W155: 0 | X155: 0 | Y155: 0 | Z155: 0 | AA155: 0
A156: Bergsma, Brian | B156: IN Michigan Power | C156: 0 | D156: 0 | E156: 0 | F156: 0 | G156: 0 | H156: 0 | I156: 0 | J156: 0 | K156: 0 | L156: 0 | M156: 0 | N156: 0 | O156: 0 | P156: 0 | Q156: 0 | R156: 0 | S156: 0 | T156: 0 | U156: 0 | V156: 0 | W156: 0 | X156: 0 | Y156: 0 | Z156: 0 | AA156: 0
A157: Berkshire, Lacey | B157: John Frick & Associates | C157: 0 | D157: 0 | E157: 0 | F157: 0 | G157: 0 | H157: 0 | I157: 0 | J157: 0 | K157: 0 | L157: 0 | M157: 0 | N157: 0 | X157: =SUM(O157:W157) -> 0 | Z157: =SUM(X157-Y157) -> 0 | AA157: =SUM(N157+Z157) -> 0
A158: Berron, Karl | B158: IN Assn of Realtors, Inc. | C158: 0 | D158: 0 | E158: 0 | F158: 0 | G158: 0 | H158: 0 | I158: 0 | J158: 0 | K158: 0 | L158: 0 | M158: 0 | N158: 0 | O158: 0 | P158: 0 | Q158: 0 | R158: 0 | S158: 0 | T158: 0 | U158: 0 | V158: 0 | W158: 0 | X158: 0 | Y158: 0 | Z158: 0 | AA158: 0
A159: Berry, Anne | B159: AstraZeneca Pharma | C159: 0 | D159: 0 | E159: 0 | F159: 0 | G159: 0 | H159: 0 | I159: 0 | J159: 0 | K159: 0 | L159: 0 | M159: 0 | N159: 0 | O159: 2000 | P159: 0 | Q159: 0 | R159: 0 | S159: 0 | T159: 0 | U159: 0 | V159: 0 | W159: 0 | X159: =SUM(O159:W159) -> 2000 | Y159: 0 | Z159: =SUM(X159-Y159) -> 2000 | AA159: =SUM(N159+Z159) -> 2000
A160: Bess, Todd | B160: IN School Principals Assn | C160: 0 | D160: 0 | E160: 0 | F160: 0 | G160: 0 | H160: 0 | I160: 0 | J160: 0 | K160: 0 | L160: 0 | M160: 0 | N160: 0 | O160: 0 | P160: 0 | Q160: 0 | R160: 0 | S160: 0 | T160: 0 | U160: 0 | V160: 0 | W160: 0 | X160: 0 | Y160: 0 | Z160: 0 | AA160: 0
A161: Betancourt, Bonny | B161: Covanta Energy Corp | L161: 0 | M161: 0 | N161: 0 | O161: 0 | P161: 0 | Q161: 0 | R161: 0 | S161: 0 | T161: 0 | U161: 0 | V161: 0 | W161: 0 | X161: =SUM(O161:W161) -> 0 | Y161: 0 | Z161: =SUM(X161-Y161) -> 0 | AA161: =SUM(N161+Z161) -> 0
A162: Biberstine, Michael | B162: Grtr Indpls Chamber of Commerce | C162: 0 | D162: 0 | E162: 0 | F162: 390.11 | G162: 0 | H162: 0 | I162: 0 | J162: 0 | K162: 0 | L162: 390.11 | M162: 0 | N162: 390.11 | O162: 0 | P162: 0 | Q162: 0 | R162: 0 | S162: 0 | T162: 1261.88 | U162: 0 | V162: 0 | W162: 0 | X162: 1261.88 | Y162: 0 | Z162: 1261.88 | AA162: 1651.99
A163: Bickel, Sandra | B163: Girl Scouts of Central IN | C163: 0 | D163: 0 | E163: 0 | F163: 0 | G163: 0 | H163: 0 | I163: 0 | J163: 50 | K163: 0 | L163: 50 | M163: 0 | N163: 50 | O163: 0 | P163: 0 | Q163: 0 | R163: 0 | S163: 0 | T163: 0 | U163: 0 | V163: 100 | W163: 0 | X163: 100 | Y163: 100 | Z163: 0 | AA163: 50
A164: Biles, Christopher | B164: Natl Rifle Assn of America | C164: 0 | D164: 0 | E164: 0 | F164: 0 | G164: 0 | H164: 0 | I164: 0 | J164: 0 | K164: 0 | L164: 0 | M164: 0 | N164: 0 | O164: 0 | P164: 0 | Q164: 0 | R164: 0 | S164: 0 | T164: 0 | U164: 0 | V164: 0 | W164: 0 | X164: 0 | Y164: 0 | Z164: 0 | AA164: 0
A165: Bingham Greenebaum Doll | B165: non client expenses | L165: 0 | N165: 0 | X165: 0 | Z165: 0 | AA165: 0
B166: Ameristar Casinos, Inc. | C166: 118968.49 | D166: 0 | E166: 0 | F166: 0 | G166: 0 | H166: 0 | I166: 0 | J166: 0 | K166: 0 | L166: 118968.49 | M166: 0 | N166: 118968.49 | O166: 66707.75 | P166: 0 | Q166: 0 | R166: 0 | S166: 0 | T166: 0 | U166: 0 | V166: 0 | W166: 0 | X166: =SUM(O166:W166) -> 66707.75 | Y166: 0 | Z166: =SUM(X166-Y166) -> 66707.75 | AA166: =SUM(N166+Z166) -> 185676.24
B167: Apangea Learning | C167: 2665.48 | D167: 0 | E167: 0 | F167: 0 | G167: 0 | H167: 0 | I167: 0 | J167: 0 | K167: 0 | L167: 2665.48 | M167: 0 | N167: 2665.48 | X167: =SUM(O167:W167) -> 0 | Z167: =SUM(X167-Y167) -> 0 | AA167: =SUM(N167+Z167) -> 2665.48
B168: Capital Imprv Board of Mgrs Marion Co | C168: 0 | D168: 0 | E168: 0 | F168: 0 | G168: 0 | H168: 0 | I168: 0 | J168: 0 | K168: 0 | L168: 0 | M168: 0 | N168: 0 | O168: 0 | P168: 0 | Q168: 0 | R168: 0 | S168: 0 | T168: 0 | U168: 0 | V168: 0 | W168: 0 | X168: =SUM(O168:W168) -> 0 | Y168: 0 | Z168: =SUM(X168-Y168) -> 0 | AA168: =SUM(N168+Z168) -> 0
B169: City of Bloomington, IN | C169: 0 | D169: 0 | E169: 0 | F169: 0 | G169: 0 | H169: 0 | I169: 0 | J169: 0 | K169: 0 | L169: 0 | M169: 0 | N169: 0 | O169: 6187.39 | P169: 0 | Q169: 0 | R169: 0 | S169: 0 | T169: 0 | U169: 0 | V169: 0 | W169: 0 | X169: 6187.39 | Y169: 0 | Z169: 6187.39 | AA169: 6187.39
B170: City Real Estate Advisors | C170: 1426.13 | D170: 0 | E170: 0 | F170: 0 | G170: 0 | H170: 0 | I170: 0 | J170: 0 | K170: 0 | L170: 1426.13 | M170: 0 | N170: 1426.13 | X170: =SUM(O170:W170) -> 0 | Z170: =SUM(X170-Y170) -> 0 | AA170: =SUM(N170+Z170) -> 1426.13
B171: EDS, Incorporated | C171: 541.67 | D171: 0 | E171: 0 | F171: 0 | G171: 0 | H171: 0 | I171: 0 | J171: 0 | K171: 0 | L171: 541.67 | M171: 0 | N171: 541.67 | X171: 0 | Z171: 0 | AA171: 541.67
B172: IN Public Charter Schools Assn | C172: 0 | D172: 0 | E172: 0 | F172: 0 | G172: 0 | H172: 0 | I172: 0 | J172: 0 | K172: 0 | L172: 0 | M172: 0 | N172: 0 | O172: 126084.5 | P172: 0 | Q172: 0 | R172: 0 | S172: 0 | T172: 0 | U172: 0 | V172: 0 | W172: 0 | X172: =SUM(O172:W172) -> 126084.5 | Y172: 0 | Z172: =SUM(X172-Y172) -> 126084.5 | AA172: =SUM(N172+Z172) -> 126084.5
B173: IN State Building & Construction | C173: 6932.71 | D173: 0 | E173: 0 | F173: 0 | G173: 0 | H173: 0 | I173: 0 | J173: 0 | K173: 0 | L173: 6932.71 | M173: 0 | N173: 6932.71 | O173: 0 | P173: 0 | Q173: 0 | R173: 0 | S173: 0 | T173: 0 | U173: 0 | V173: 0 | W173: 0 | X173: 0 | Y173: 0 | Z173: 0 | AA173: 6932.71
B174: Midwest Fertility Specialists | C174: 4057.11 | D174: 0 | E174: 0 | F174: 0 | G174: 0 | H174: 0 | I174: 0 | J174: 0 | K174: 0 | L174: 4057.11 | M174: 0 | N174: 4057.11 | O174: 124.77 | P174: 0 | Q174: 0 | R174: 0 | S174: 0 | T174: 0 | U174: 0 | V174: 0 | W174: 0 | X174: =SUM(O174:W174) -> 124.77 | Y174: 0 | Z174: =SUM(X174-Y174) -> 124.77 | AA174: =SUM(N174+Z174) -> 4181.88
A175: Blackwell, Leo | B175: IN Fraternal Order of Police | C175: 0 | D175: 0 | E175: 0 | F175: 0 | G175: 0 | H175: 0 | I175: 0 | J175: 0 | K175: 0 | L175: =SUM(C175:K175) -> 0 | M175: 0 | N175: =SUM(L175-M175) -> 0 | O175: 0 | P175: 0 | Q175: 0 | R175: 0 | S175: 0 | T175: 0 | U175: 0 | V175: 0 | W175: 0 | X175: 0 | Y175: 0 | Z175: 0 | AA175: 0
A176: Blanford, Allyson | B176: Express Scripts Holding Co | L176: 0 | M176: 0 | N176: 0 | O176: 0 | P176: 0 | Q176: 0 | R176: 0 | S176: 0 | T176: 0 | U176: 0 | V176: 0 | W176: 0 | X176: 0 | Y176: 0 | Z176: 0 | AA176: 0
A177: Blue & Co., LLC | B177: IN Hospital & Health Assn | C177: 0 | D177: 0 | E177: 0 | F177: 0 | G177: 0 | H177: 0 | I177: 0 | J177: 0 | K177: 0 | L177: 0 | M177: 0 | N177: 0 | O177: 0 | P177: 0 | Q177: 0 | R177: 0 | S177: 0 | T177: 0 | U177: 0 | V177: 0 | W177: 0 | X177: 0 | Y177: 0 | Z177: 0 | AA177: 0
B178: IN Council of Community Mental Health Centers | C178: 0 | D178: 0 | E178: 0 | F178: 0 | G178: 0 | H178: 0 | I178: 0 | J178: 0 | K178: 0 | L178: 0 | M178: 0 | N178: 0 | O178: 0 | P178: 0 | Q178: 0 | R178: 0 | S178: 0 | T178: 0 | U178: 0 | V178: 0 | W178: 0 | X178: 0 | Y178: 0 | Z178: 0 | AA178: 0
A179: Blunt, Camille | B179: See Clients Bose Public Affairs Group LLC | C179: 0 | D179: 0 | E179: 0 | F179: 23.15 | G179: 0 | H179: 0 | I179: 134.83 | J179: 0 | K179: 0 | L179: 157.98 | M179: 157.98 | N179: 2.842170943e-14 | O179: 0 | P179: 0 | Q179: 0 | R179: 0 | S179: 0 | T179: 0 | U179: 0 | V179: 0 | W179: 0 | X179: 0 | Y179: 0 | Z179: 0 | AA179: 2.842170943e-14
A180: Boerste, Dean | B180: Bernardin, Lochmueller & Associates, Inc. | C180: 0 | D180: 0 | E180: 0 | F180: 0 | G180: 0 | H180: 0 | I180: 0 | J180: 0 | K180: 0 | L180: 0 | M180: 0 | N180: 0 | O180: 0 | P180: 0 | Q180: 0 | R180: 0 | S180: 0 | T180: 0 | U180: 0 | V180: 0 | W180: 0 | X180: 0 | Y180: 0 | Z180: 0 | AA180: 0
A181: Boldt, Sherry L | B181: BP America | C181: 0 | D181: 0 | E181: 0 | F181: 0 | G181: 0 | H181: 304 | I181: 0 | J181: 200 | K181: 0 | L181: 504 | M181: 0 | N181: 504 | O181: 0 | P181: 0 | Q181: 0 | R181: 0 | S181: 0 | T181: 0 | U181: 0 | V181: 0 | W181: 0 | X181: 0 | Y181: 0 | Z181: 0 | AA181: 504
A182: Bolinger, Gary M. | B182: IN CPA Society | C182: 0 | D182: 0 | E182: 0 | F182: 0 | G182: 0 | H182: 0 | I182: 0 | J182: 0 | K182: 0 | L182: 0 | M182: 0 | N182: 0 | O182: 0 | P182: 0 | Q182: 0 | R182: 0 | S182: 0 | T182: 0 | U182: 0 | V182: 0 | W182: 0 | X182: 0 | Y182: 0 | Z182: 0 | AA182: 0
A183: Bond, Jon | B183: Lewis Kappes Governmental Relations Group | C183: 0 | D183: 0 | E183: 0 | F183: 0 | G183: 0 | H183: 0 | I183: 0 | J183: 0 | K183: 0 | L183: 0 | M183: 0 | N183: 0 | O183: 0 | P183: 0 | Q183: 0 | R183: 0 | S183: 0 | T183: 0 | U183: 0 | V183: 0 | W183: 0 | X183: 0 | Y183: 0 | Z183: 0 | AA183: 0
A184: Bonham, Rebecca | B184: School City of Mishawaka | C184: 0 | D184: 0 | E184: 0 | F184: 174 | G184: 0 | H184: 0 | I184: 0 | J184: 100 | K184: 0 | L184: 274 | M184: 274 | N184: 0 | O184: 0 | P184: 0 | Q184: 0 | R184: 0 | S184: 0 | T184: 0 | U184: 0 | V184: 0 | W184: 0 | X184: 0 | Y184: 0 | Z184: 0 | AA184: 0
A185: Boron, Andrew | B185: ACE Group-North America | C185: 0 | D185: 0 | E185: 0 | F185: 0 | G185: 0 | H185: 0 | I185: 0 | J185: 0 | K185: 0 | L185: 0 | M185: 0 | N185: 0 | X185: 0 | Z185: 0 | AA185: 0
A186: Borror, Randy | B186: Client of Bose Public Affairs Group | C186: 0 | D186: 0 | E186: 0 | F186: 19.46 | G186: 0 | H186: 0 | I186: 0 | J186: 0 | K186: 0 | L186: 19.46 | M186: 19.46 | N186: 0 | O186: 0 | P186: 0 | Q186: 0 | R186: 0 | S186: 0 | T186: 0 | U186: 50.22 | V186: 0 | W186: 0 | X186: 50.22 | Y186: 50.22 | Z186: 0 | AA186: 0
A187: Bose McKinney Evans | B187: IN Bankers Assn | C187: 0 | D187: 0 | E187: 0 | F187: 0 | G187: 0 | H187: 0 | I187: 0 | J187: 0 | K187: 0 | L187: 0 | M187: 0 | N187: 0 | O187: 0 | P187: 0 | Q187: 0 | R187: 0 | S187: 0 | T187: 0 | U187: 0 | V187: 0 | W187: 0 | X187: 0 | Y187: 0 | Z187: 0 | AA187: 0
B188: non client expenses | C188: 0 | D188: 0 | E188: 0 | F188: 0 | G188: 0 | H188: 0 | I188: 64.36 | J188: 0 | K188: 0 | L188: 64.36 | M188: 0 | N188: 64.36 | O188: 0 | P188: 0 | Q188: 0 | R188: 0 | S188: 0 | T188: 0 | U188: 1819.67 | V188: 0 | W188: 0 | X188: 1819.67 | Y188: 0 | Z188: 1819.67 | AA188: 1884.03
B189: Indianapolis Colts | C189: 0 | D189: 0 | E189: 0 | F189: 0 | G189: 0 | H189: 0 | I189: 0 | J189: 0 | K189: 0 | L189: 0 | M189: 0 | N189: 0 | X189: 0 | Z189: 0 | AA189: 0
A190: Bose Public Affairs Group | B190: non client expenses | C190: 0 | D190: 0 | E190: 0 | F190: 0 | G190: 0 | H190: 0 | I190: 0 | J190: 1915 | K190: 0 | L190: 1915 | M190: 0 | N190: 1915 | O190: 0 | P190: 0 | Q190: 0 | R190: 333.55 | S190: 0 | T190: 0 | U190: 0 | V190: 17 | W190: 0 | X190: 350.55 | Y190: 0 | Z190: 350.55 | AA190: 2265.55
B191: Abbott Laboratories, Inc. | C191: 442.09 | D191: 0 | E191: 7.57 | F191: 0 | G191: 0 | H191: 5.85 | I191: 0 | J191: 2 | K191: 0 | L191: =SUM(C191:K191) -> 457.51 | M191: 457.51 | N191: =SUM(L191-M191) -> 0 | O191: 3280.2 | P191: 71.12 | Q191: 11.82 | R191: 21.87 | S191: 0 | T191: 70.43 | U191: 0 | V191: 107 | W191: 0 | X191: =SUM(O191:W191) -> 3562.44 | Y191: 3562.44 | Z191: =SUM(X191-Y191) -> -4.547473509e-13 | AA191: =SUM(N191+Z191) -> -4.547473509e-13
B192: Abengoa Bioenergy of IN | C192: 560.27 | D192: 0 | E192: 7.57 | F192: 0 | G192: 0 | H192: 5.85 | I192: 0 | J192: 2 | K192: 0 | L192: 575.69 | M192: 575.69 | N192: 0 | O192: 642.92 | P192: 32.63 | Q192: 26.01 | R192: 7.68 | S192: 0 | T192: 70.43 | U192: 0 | V192: 105 | W192: 0 | X192: 884.67 | Y192: 884.67 | Z192: -1.136868377e-13 | AA192: -1.136868377e-13
B193: Aetna, Inc. | C193: 1196.51 | D193: 0 | E193: 0 | F193: 0 | G193: 0 | H193: 0 | I193: 0 | J193: 2 | K193: 0 | L193: 1198.51 | M193: 1198.51 | N193: 0 | O193: 2401.1 | P193: 220.18 | Q193: 11.82 | R193: 7.68 | S193: 0 | T193: 70.43 | U193: 0 | V193: 107 | W193: 0 | X193: 2818.21 | Y193: 2818.21 | Z193: -4.547473509e-13 | AA193: -4.547473509e-13
B194: AFLAC | C194: 788.18 | D194: 138.89 | E194: 0 | F194: 7.6 | G194: 0 | H194: 84.62 | I194: 0 | J194: 1 | K194: 0 | L194: 1020.29 | M194: 1020.29 | N194: 0 | O194: 577.31 | P194: 38.64 | Q194: 11.82 | R194: 0 | S194: 0 | T194: 0 | U194: 0 | V194: 1 | W194: 0 | X194: 628.77 | Y194: 628.77 | Z194: 0 | AA194: 0
B195: Alliance of Automobile Manufacturers | C195: 4026.36 | D195: 0 | E195: 0 | F195: 0 | G195: 0 | H195: 0 | I195: 0 | J195: 2 | K195: 0 | L195: 4028.36 | M195: 4028.36 | N195: 0 | O195: 2138.69 | P195: 0 | Q195: 0 | R195: 0 | S195: 0 | T195: 0 | U195: 0 | V195: 2 | W195: 0 | X195: 2140.69 | Y195: 2140.69 | Z195: 0 | AA195: 0
B196: Alpha Rae Personnel, Inc. | C196: 0 | D196: 29.05 | E196: 0 | F196: 0 | G196: 0 | H196: 7.91 | I196: 0 | J196: 0 | K196: 0 | L196: 36.96 | M196: 36.96 | N196: 0 | O196: 0 | P196: 0 | Q196: 0 | R196: 3.91 | S196: 0 | T196: 0 | U196: 0 | V196: 0 | W196: 0 | X196: 3.91 | Y196: 3.91 | Z196: 0 | AA196: 0
B197: Amazon.com | C197: 891.63 | D197: 0 | E197: 0 | F197: 0 | G197: 0 | H197: 0 | I197: 0 | J197: 105 | K197: 0 | L197: =SUM(C197:K197) -> 996.63 | M197: 0 | N197: =SUM(L197-M197) -> 996.63 | X197: =SUM(O197:W197) -> 0 | Z197: =SUM(X197-Y197) -> 0 | AA197: =SUM(N197+Z197) -> 996.63
B198: American Insurance Assn | C198: 750.19 | D198: 32.63 | E198: 0 | F198: 7.68 | G198: 0 | H198: 92.53 | I198: 0 | J198: 107 | K198: 0 | L198: =SUM(C198:K198) -> 990.03 | M198: 990.03 | N198: =SUM(L198-M198) -> 0 | O198: 1613.86 | P198: 9.59 | Q198: 3.91 | R198: 0 | S198: 0 | T198: 0 | U198: 0 | V198: 2 | W198: 0 | X198: =SUM(O198:W198) -> 1629.36 | Y198: 1629.36 | Z198: =SUM(X198-Y198) -> 0 | AA198: =SUM(N198+Z198) -> 0
B199: Assn of IN Life Insurance Companies | C199: 2535.47 | D199: 3.58 | E199: 0 | F199: 7.68 | G199: 0 | H199: 84.62 | I199: 0 | J199: 107 | K199: 0 | L199: =SUM(C199:K199) -> 2738.35 | M199: 2738.35 | N199: =SUM(L199-M199) -> -4.547473509e-13 | O199: 3608.22 | P199: 60.91 | Q199: 11.82 | R199: 0 | S199: 0 | T199: 0 | U199: 0 | V199: 2 | W199: 0 | X199: =SUM(O199:W199) -> 3682.95 | Y199: 3682.95 | Z199: =SUM(X199-Y199) -> 0 | AA199: =SUM(N199+Z199) -> -4.547473509e-13
B200: Asurion Insurance Svcs Inc. | C200: 4681.6 | D200: 290.62 | E200: 0 | F200: 7.68 | G200: 0 | H200: 84.62 | I200: 0 | J200: 107 | K200: 0 | L200: =SUM(C200:K200) -> 5171.52 | M200: 5171.52 | N200: =SUM(L200-M200) -> 0 | O200: 380.5 | P200: 51.32 | Q200: 11.82 | R200: 0 | S200: 0 | T200: 0 | U200: 0 | V200: 0 | W200: 0 | X200: =SUM(O200:W200) -> 443.64 | Y200: 443.64 | Z200: =SUM(X200-Y200) -> 0 | AA200: =SUM(N200+Z200) -> 0
B201: Bose McKinney & Evans | C201: 0 | D201: 0 | E201: 0 | F201: 0 | G201: 0 | H201: 0 | I201: 0 | J201: 0 | K201: 0 | L201: 0 | M201: 0 | N201: 0 | O201: 0 | P201: 0 | Q201: 0 | R201: 2.61 | S201: 0 | T201: 0 | U201: 0 | V201: 9 | W201: 0 | X201: 11.61 | Y201: 11.61 | Z201: 0 | AA201: 0
B202: Build IN Council | C202: 0 | D202: 0 | E202: 0 | F202: 0 | G202: 0 | H202: 0 | I202: 0 | J202: 0 | K202: 0 | L202: 0 | M202: 0 | N202: 0 | O202: 0 | P202: 0 | Q202: 0 | R202: 0 | S202: 0 | T202: 0 | U202: 0 | V202: 0 | W202: 0 | X202: 0 | Y202: 0 | Z202: 0 | AA202: 0
... 1250 more rows

Sheet Sheet2

Sheet Sheet3
